bitfinex/quotes_SOLUSD_20250517
["timestamp","ask_amount","ask_price","bid_price","bid_amount"]
[1747499681754,20.68,165.64,165.57,1.20754698]
[1747499681958,20.88,165.63,165.57,1.20754698]
[1747499683382,20.88,165.63,165.58,6.03937673]
[1747499683876,20.88,165.63,165.58,101.83781857]
[1747499684261,20.68,165.64,165.59,1.20748216]
[1747499685789,20.68,165.64,165.6,6.03864734]
[1747499685971,20.68,165.64,165.6,86.73864734]
[1747499687287,20.82,165.65,165.6,86.73864734]
[1747499687665,26.8569401,165.65,165.6,80.7]
[1747499689557,26.8569401,165.65,165.6,86.73863865]
[1747499690080,26.8569401,165.65,165.6,80.7]
[1747499690386,26.0,165.6,165.41,10.75175709]
[1747499690566,44.64964886,165.48,165.41,3.11055709]
[1747499690767,41.4,165.47,165.41,3.11055709]
[1747499690960,41.4,165.47,165.36,13.68855251]
[1747499691159,18.64964886,165.46,165.36,7.6412]
[1747499691590,18.64964886,165.46,165.36,6.0958]
[1747499691963,18.64964886,165.44,165.35,0.16401865]
[1747499692290,18.64964886,165.4,165.35,0.16401865]
[1747499692486,41.4,165.39,165.35,0.16401865]
[1747499692674,18.64964886,165.38,165.35,0.16401865]
[1747499693482,44.64964886,165.38,165.35,0.16401865]
[1747499694060,6.04704601,165.37,165.35,0.16401865]
[1747499694262,73.45923305,165.4,165.35,0.16401865]
[1747499694471,60.08964886,165.39,165.35,0.16401865]
[1747499695075,15.12,165.36,165.35,0.16401865]
[1747499696486,33.76964886,165.36,165.35,0.16401865]
[1747499696992,15.12,165.36,165.35,0.16401865]
[1747499697186,35.8,165.36,165.35,0.16401865]
[1747499697894,20.68,165.36,165.35,0.16401865]
[1747499698080,18.64964886,165.39,165.35,0.16401865]
[1747499698278,41.4,165.38,165.35,0.16401865]
[1747499698574,41.4,165.38,165.35,6.21172666]
[1747499698770,41.4,165.38,165.35,0.16401865]
[1747499698771,44.64964886,165.36,165.35,0.16401865]
[1747499698972,59.76964886,165.36,165.35,0.16401865]
[1747499700090,59.76964886,165.36,165.23,15.12977206]
[1747499700091,18.64964886,165.35,165.26,6.05100146]
[1747499700279,6.04814322,165.34,165.23,15.12977206]
[1747499700700,6.04778508,165.35,165.23,15.12977206]
[1747499700863,21.32,165.34,165.26,27.5227]
[1747499701067,21.32,165.33,165.24,1.20995056]
[1747499701277,21.32,165.33,165.23,6.5038]
[1747499701278,47.32,165.33,165.23,6.5038]
[1747499701975,47.32,165.33,165.24,18.64964886]
[1747499702467,6.0488749,165.32,165.26,18.64964886]
[1747499702863,21.32,165.33,165.26,18.64964886]
[1747499703086,67.56459668,165.35,165.26,18.64964886]
[1747499703087,46.84459668,165.35,165.26,18.64964886]
[1747499703274,21.36,165.34,165.26,18.64964886]
[1747499704386,27.40827446,165.34,165.28,18.64964886]
[1747499705689,27.40827446,165.34,165.26,6.0510043]
[1747499708711,27.40827446,165.34,165.25,24.70105961]
[1747499710698,68.52863251,165.34,165.25,18.64964886]
[1747499712176,68.52863251,165.34,165.21,1.5227]
[1747499712177,1.6335,165.33,165.21,20.17234886]
[1747499712378,1.6335,165.33,165.22,18.64964886]
[1747499712697,1.6335,165.33,165.21,7.57550006]
[1747499712903,6.0488749,165.32,165.21,7.57550006]
[1747499713081,6.0488749,165.32,165.22,18.64964886]
[1747499713902,6.0488749,165.32,165.21,7.57550006]
[1747499714082,6.0488749,165.32,165.22,18.64964886]
[1747499714898,6.04850904,165.33,165.24,18.64964886]
[1747499715412,26.78850904,165.33,165.24,18.64964886]
[1747499715577,21.26,165.32,165.24,18.64964886]
[1747499715777,6.04924082,165.31,165.25,6.05143721]
[1747499716520,21.24,165.3,165.25,6.05143721]
[1747499717385,21.24,165.3,165.26,18.64964886]
[1747499717589,26.78882646,165.33,165.26,18.64964886]
[1747499717774,21.22,165.32,165.26,18.64964886]
[1747499718101,21.22,165.34,165.28,18.64964886]
[1747499718305,21.22,165.34,165.29,1.5426]
[1747499718500,46.84459668,165.35,165.3,18.64964886]
[1747499719182,46.84459668,165.35,165.31,6.04924082]
[1747499720117,46.84459668,165.35,165.3,18.64964886]
[1747499721181,52.89242016,165.35,165.3,18.64964886]
[1747499721383,46.84459668,165.35,165.3,24.69913653]
[1747499721624,52.89238817,165.35,165.3,24.69913653]
[1747499721788,46.84459668,165.35,165.3,24.69913653]
[1747499724809,52.89244035,165.35,165.3,18.64964886]
[1747499725107,52.89244035,165.35,165.29,18.64964886]
[1747499725309,52.89244035,165.35,165.27,6.0575]
[1747499725512,52.89244035,165.35,165.28,18.64964886]
[1747499725808,68.01188395,165.35,165.28,18.64964886]
[1747499727791,26.0,165.31,165.19,8.078]
[1747499727992,21.22,165.3,165.19,8.078]
[1747499728708,21.22,165.3,165.19,6.4677]
[1747499728903,26.0,165.26,165.15,1.5328]
[1747499729104,26.0,165.26,165.05,80.7]
[1747499729105,27.2363,165.25,165.09,6.3022]
[1747499729408,21.24,165.24,165.09,5.8022]
[1747499729612,26.0,165.21,165.09,5.8022]
[1747499729911,6.05326876,165.2,165.1,18.64964886]
[1747499730090,27.21326876,165.2,165.1,18.64964886]
[1747499730411,21.24,165.19,165.1,18.64964886]
[1747499731410,21.24,165.19,165.11,6.05656834]
[1747499731615,27.2936922,165.19,165.11,6.05656834]
[1747499732002,27.2936922,165.19,165.12,18.64964886]
[1747499732392,21.24,165.19,165.12,18.64964886]
[1747499733227,21.2,165.18,165.12,18.64964886]
[1747499733527,21.2,165.18,165.13,6.05583479]
[1747499737631,3.32534787,165.24,165.18,26.0]
[1747499737927,3.32534787,165.24,165.19,18.64964886]
[1747499738696,3.32534787,165.24,165.19,41.04000669]
[1747499738931,21.18,165.35,165.23,24.73934886]
[1747499739097,6.04704601,165.37,165.25,18.64964886]
[1747499739493,6.04704601,165.37,165.27,18.64964886]
[1747499740021,68.46245568,165.38,165.27,18.64964886]
[1747499740522,62.41567748,165.38,165.27,18.64964886]
[1747499740712,42.38,165.38,165.27,18.64964886]
[1747499741019,21.18,165.38,165.27,18.64964886]
[1747499741224,6.04704601,165.37,165.27,39.80964886]
[1747499741613,6.04704601,165.37,165.28,6.05033881]
[1747499742822,21.16466105,165.37,165.27,18.64964886]
[1747499743016,6.04704601,165.37,165.27,18.64964886]
[1747499743521,6.04594921,165.4,165.31,6.04924082]
[1747499744210,6.04594921,165.4,165.28,6.05033881]
[1747499745215,21.16082224,165.4,165.28,6.05033881]
[1747499745430,21.16082224,165.4,165.27,6.05063641]
[1747499745625,21.16082224,165.4,165.18,6.4784]
[1747499745626,26.0,165.33,165.18,6.4784]
[1747499745805,42.48,165.32,165.19,6.0536352]
[1747499745997,21.32,165.31,165.19,6.0536352]
[1747499746207,21.32,165.31,165.2,18.64964886]
[1747499746410,21.32,165.31,165.24,18.64964886]
[1747499747627,21.32,165.31,165.26,18.64964886]
[1747499747933,21.3,165.36,165.26,18.64964886]
[1747499748309,27.34743267,165.36,165.26,18.64964886]
[1747499749109,21.3,165.36,165.26,18.64964886]
[1747499749911,27.34751035,165.36,165.27,6.0507049]
[1747499751534,27.34753462,165.36,165.27,6.0507049]
[1747499752323,27.34753462,165.36,165.27,21.17746716]
[1747499752520,21.3,165.36,165.28,24.76564886]
[1747499753041,21.16,165.38,165.28,24.76564886]
[1747499753223,21.16,165.38,165.28,45.98564886]
[1747499753535,6.04639607,165.39,165.3,18.64964886]
[1747499755035,6.04594921,165.4,165.32,18.64964886]
[1747499756445,6.04559872,165.41,165.32,18.64964886]
[1747499757013,6.04559872,165.41,165.34,18.64964886]
[1747499758118,6.04559872,165.41,165.34,24.6976894]
[1747499758531,21.15955797,165.41,165.32,6.0488749]
[1747499759742,21.15955797,165.41,165.31,6.04924082]
[1747499759948,21.15955797,165.41,165.32,18.64964886]
[1747499760747,27.20529455,165.42,165.32,18.64964886]
[1747499761045,21.16,165.43,165.35,26.0]
[1747499761338,7.8676,165.48,165.38,18.64964886]
[1747499761339,27.12310236,165.48,165.38,18.64964886]
[1747499761714,21.08,165.48,165.39,21.16210169]
[1747499761921,21.14,165.49,165.4,18.64964886]
[1747499762934,27.18280766,165.49,165.39,6.04628577]
[1747499763133,27.18280766,165.49,165.4,18.64964886]
[1747499763813,48.24280766,165.49,165.4,18.64964886]
[1747499764013,6.04280766,165.49,165.4,156.94964886]
[1747499764246,6.04187397,165.52,165.4,237.64964886]
[1747499764451,6.04187397,165.52,165.4,120.48964886]
[1747499764949,15.10391493,165.52,165.41,6.0455837]
[1747499765447,15.10391493,165.52,165.42,18.64964886]
[1747499765833,15.10391493,165.52,165.44,18.64964886]
[1747499766038,15.10391493,165.52,165.44,80.7]
[1747499766243,15.10391493,165.52,165.41,99.34964886]
[1747499766931,15.10391493,165.52,165.41,18.64964886]
[1747499767551,15.10391493,165.52,165.37,6.2128]
[1747499767736,41.10391493,165.52,165.38,18.64964886]
[1747499768053,77.35331076,165.52,165.38,24.69625393]
[1747499768637,77.35331076,165.52,165.38,18.64964886]
[1747499769077,77.35331076,165.52,165.38,24.69625068]
[1747499769747,77.35331076,165.52,165.38,18.64964886]
[1747499770335,26.0,165.49,165.38,18.64964886]
[1747499770551,42.22,165.48,165.38,18.64964886]
[1747499770730,42.22,165.48,165.38,99.34964886]
[1747499772026,21.15187042,165.47,165.38,99.34964886]
[1747499773334,21.15187042,165.47,165.37,80.7]
[1747499773335,27.55137042,165.47,165.37,80.7]
[1747499774943,75.86832817,165.47,165.34,18.64964886]
[1747499775134,75.86832817,165.47,165.34,99.34964886]
[1747499775336,26.0,165.44,165.33,87.2014]
[1747499775533,44.1,165.44,165.33,80.7]
[1747499775731,44.1,165.44,165.3,99.34964886]
[1747499776922,44.1,165.44,165.3,105.39924905]
[1747499777120,51.38124884,165.43,165.3,105.39924905]
[1747499777325,42.12,165.42,165.3,105.39924905]
[1747499778251,21.15954295,165.41,165.3,105.39924905]
[1747499778750,21.15954295,165.41,165.3,99.34964886]
[1747499778954,21.15954295,165.41,165.31,18.64964886]
[1747499779152,6.0455837,165.41,165.31,18.64964886]
[1747499779457,6.0455837,165.41,165.31,99.34964886]
[1747499780431,21.15954295,165.41,165.31,105.39885857]
[1747499781353,6.0455837,165.41,165.31,105.39885857]
[1747499781562,21.15954295,165.41,165.31,99.34964886]
[1747499781734,26.0,165.38,165.29,6.5014]
[1747499782050,27.5928,165.4,165.29,6.5014]
[1747499782455,21.16210169,165.39,165.29,6.5014]
[1747499782953,51.39367554,165.39,165.29,6.5014]
[1747499783538,51.39367554,165.39,165.3,18.64964886]
[1747499783539,21.16210169,165.39,165.3,18.64964886]
[1747499783738,21.16210169,165.39,165.3,99.34964886]
[1747499784558,15.11578692,165.39,165.31,6.04924082]
[1747499784755,6.0455837,165.41,165.32,18.64964886]
[1747499785859,21.15954295,165.41,165.3,80.7]
[1747499786959,26.0,165.38,165.29,6.5014]
[1747499787661,26.0,165.38,165.28,1.5396]
[1747499787863,21.16466105,165.37,165.24,6.1663]
[1747499788065,26.0,165.35,165.24,6.1663]
[1747499788969,43.3928,165.36,165.24,12.21809269]
[1747499789469,43.3928,165.36,165.24,6.1663]
[1747499789948,21.16722104,165.35,165.24,6.1663]
[1747499790149,51.40610824,165.35,165.24,6.1663]
[1747499790972,21.16722104,165.35,165.24,12.21803758]
[1747499791143,21.16722104,165.35,165.24,6.1663]
[1747499792169,21.16722104,165.35,165.24,12.21796246]
[1747499792352,21.16722104,165.35,165.25,18.64964886]
[1747499792551,6.04777744,165.35,165.25,18.64964886]
[1747499792860,26.88777744,165.35,165.25,18.64964886]
[1747499793668,26.88777744,165.35,165.26,6.05107103]
[1747499794059,26.88777744,165.35,165.25,18.64964886]
[1747499794747,42.00722104,165.35,165.25,18.64964886]
[1747499795347,72.24610824,165.35,165.24,6.1663]
[1747499796467,26.0,165.34,165.23,80.7]
[1747499796657,6.1755,165.33,165.2,6.3403]
[1747499796854,1.6044,165.32,165.2,93.09350572]
[1747499797656,21.16978164,165.33,165.23,18.64964886]
[1747499798555,26.0,165.3,165.2,6.3403]
[1747499798770,42.6,165.29,165.2,6.3403]
[1747499799479,42.6,165.29,165.21,18.64964886]
[1747499799858,6.05033881,165.28,165.21,18.64964886]
[1747499800662,6.05033881,165.28,165.21,24.70236235]
[1747499800860,48.65004946,165.29,165.21,24.70236235]
[1747499803279,26.97004946,165.29,165.21,24.70236235]
[1747499803464,48.67004946,165.29,165.21,24.70236235]
[1747499806360,42.62,165.29,165.21,24.70236235]
[1747499806590,48.67003641,165.29,165.21,24.70236235]
[1747499806880,42.56,165.29,165.21,24.70236235]
[1747499807179,48.60997712,165.29,165.21,24.70236235]
[1747499807879,42.56,165.29,165.21,39.83461826]
[1747499808096,21.64,165.29,165.21,39.83461826]
[1747499809573,27.69009237,165.29,165.21,24.70236235]
[1747499812478,6.04970379,165.3,165.21,39.83461826]
[1747499812784,27.64850904,165.33,165.21,39.83461826]
[1747499812962,27.64850904,165.33,165.21,258.83461826]
[1747499814066,27.64850904,165.33,165.23,39.83224281]
[1747499815589,21.16744837,165.35,165.23,39.83224281]
[1747499815789,21.6,165.33,165.23,39.83224281]
[1747499816385,21.6,165.33,165.23,120.53224281]
[1747499816785,6.0488749,165.32,165.23,120.53224281]
[1747499817370,21.6,165.33,165.25,20.23874886]
[1747499817570,21.6,165.33,165.25,100.93874886]
[1747499818201,27.64869749,165.33,165.25,100.93874886]
[1747499819196,20.92,165.36,165.25,100.93874886]
[1747499819197,20.92,165.36,165.28,6.326]
[1747499819400,42.42,165.36,165.29,18.64964886]
[1747499819703,42.42,165.36,165.29,99.34964886]
[1747499820202,20.92,165.36,165.29,99.34964886]
[1747499820404,42.44,165.36,165.29,99.34964886]
[1747499820587,48.48757296,165.36,165.29,99.34964886]
[1747499820905,63.60610222,165.36,165.29,80.7]
[1747499821282,63.56885753,165.36,165.29,80.7]
[1747499821632,7.8839,165.35,165.29,80.7]
[1747499822376,7.8839,165.35,165.24,87.026]
[1747499822709,21.16850127,165.34,165.24,87.026]
[1747499822895,21.16850127,165.34,165.25,18.64964886]
[1747499824180,21.16850127,165.34,165.25,24.70099558]
[1747499824386,21.16850127,165.34,165.24,87.026]
[1747499825105,21.16850127,165.34,165.24,80.7]
[1747499825106,51.40921737,165.34,165.24,80.7]
[1747499825502,32.162,165.31,165.2,6.562]
[1747499825697,43.02,165.3,165.18,80.7]
[1747499826011,6.05033881,165.28,165.18,80.7]
[1747499826219,21.17618585,165.28,165.18,80.7]
[1747499826712,21.17618585,165.28,165.16,26.81864886]
[1747499827918,51.42787994,165.28,165.16,26.81864886]
[1747499828214,51.42787994,165.28,165.16,8.169]
[1747499829008,54.38928796,165.28,165.16,8.169]
[1747499829521,54.38928796,165.28,165.16,14.22370743]
[1747499831116,24.13759387,165.28,165.16,14.22370743]
[1747499831299,21.36,165.27,165.17,19.86026835]
[1747499831498,27.41033881,165.28,165.17,238.86026835]
[1747499831697,21.36,165.28,165.21,18.64964886]
[1747499832633,27.41035325,165.28,165.18,6.05400169]
[1747499832913,27.41035325,165.28,165.19,18.64964886]
[1747499833127,21.36,165.28,165.19,44.64964886]
[1747499833291,21.36,165.28,165.19,125.34964886]
[1747499834117,21.36,165.28,165.23,20.24564886]
[1747499834395,48.96898084,165.32,165.23,20.24564886]
[1747499835320,48.96898084,165.32,165.25,18.64964886]
[1747499835621,48.96898084,165.32,165.25,99.34964886]
[1747499835802,48.96898084,165.32,165.24,80.7]
[1747499836010,48.96898084,165.32,165.23,20.24564886]
[1747499836825,64.09116811,165.32,165.23,20.24564886]
[1747499837033,64.09116811,165.32,165.23,26.29779814]
[1747499839135,64.09116811,165.32,165.24,24.70138146]
[1747499839136,48.96898084,165.32,165.24,24.70138146]
[1747499839724,64.09116811,165.32,165.23,1.596]
[1747499840025,64.09116811,165.32,165.23,20.24564886]
[1747499840602,64.09116811,165.32,165.23,26.2977966]
[1747499841131,64.09116811,165.32,165.23,20.24564886]
[1747499842125,64.09116811,165.32,165.24,18.64964886]
[1747499843418,64.09116811,165.32,165.24,67.24560677]
[1747499846454,64.09116811,165.32,165.23,1.596]
[1747499846858,64.09116811,165.32,165.23,7.64816656]
[1747499847153,64.09116811,165.32,165.23,1.596]
[1747499848355,64.09116811,165.32,165.23,7.64796287]
[1747499848848,64.09116811,165.32,165.23,1.596]
[1747499849322,64.09116811,165.32,165.23,74.89364323]
[1747499850756,64.09116811,165.32,165.23,68.84160677]
[1747499852048,64.09116811,165.32,165.23,67.24560677]
[1747499852435,64.09116811,165.32,165.22,73.90800677]
[1747499855860,64.09116811,165.32,165.19,68.85150677]
[1747499855861,1.5414,165.31,165.19,68.85150677]
[1747499856455,1.5414,165.31,165.19,74.90496317]
[1747499857068,21.1736237,165.3,165.19,74.90496317]
[1747499857266,21.1736237,165.3,165.2,18.64964886]
[1747499857267,6.04960677,165.3,165.2,18.64964886]
[1747499857640,20.92,165.29,165.2,18.64964886]
[1747499857840,20.92,165.29,165.2,19.85979367]
[1747499858572,20.92,165.29,165.22,18.64964886]
[1747499858768,26.9700518,165.29,165.22,18.64964886]
[1747499859061,26.9700518,165.29,165.21,6.05290236]
[1747499860051,20.92,165.29,165.22,18.64964886]
[1747499860642,26.97007157,165.29,165.23,6.0521697]
[1747499860855,26.97007157,165.29,165.23,73.29777647]
[1747499861049,20.86,165.3,165.23,73.29777647]
[1747499862068,26.90993526,165.3,165.23,73.29777647]
[1747499862256,26.90993526,165.3,165.23,67.24560677]
[1747499862441,42.03395219,165.3,165.23,67.24560677]
[1747499863150,41.9541425,165.3,165.23,67.24560677]
[1747499864375,41.9541425,165.3,165.21,6.05282558]
[1747499864376,41.9541425,165.3,165.21,67.24560677]
[1747499865460,41.9541425,165.3,165.21,73.29849167]
[1747499865870,41.9541425,165.3,165.21,67.24560677]
[1747499866079,41.9541425,165.3,165.2,67.24560677]
[1747499866375,41.9541425,165.3,165.2,73.29881943]
[1747499867467,78.70207637,165.3,165.19,68.85150677]
[1747499867781,78.70207637,165.3,165.19,1.6059]
[1747499868071,1.6225,165.29,165.15,68.86990677]
[1747499868575,51.42787994,165.28,165.15,68.86990677]
[1747499869255,26.0,165.25,165.15,1.6243]
[1747499869569,41.9,165.24,165.15,1.6243]
[1747499869870,41.9,165.24,165.14,6.0574]
[1747499870272,26.0,165.2,165.05,8.46096577]
[1747499870571,47.19285497,165.15,165.05,8.46096577]
[1747499871849,21.19285497,165.15,165.05,8.46096577]
[1747499872173,6.05510142,165.15,165.04,1.5897]
[1747499872365,41.88,165.14,165.05,6.3198]
[1747499872566,20.74,165.13,165.06,18.64964886]
[1747499872950,20.74,165.13,165.05,6.3198]
[1747499873256,46.74,165.13,165.02,9.25869268]
[1747499874374,26.0,165.13,165.02,9.25869268]
[1747499874546,6.05656834,165.11,165.02,9.25869268]
[1747499874953,21.19798921,165.11,165.02,9.25869268]
[1747499875175,41.84,165.1,165.02,15.3184779]
[1747499875858,6.05656834,165.11,165.02,15.3184779]
[1747499876164,41.42,165.1,165.02,15.3184779]
[1747499877173,62.61949816,165.1,165.02,9.25869268]
[1747499878601,26.0,165.09,165.02,9.25869268]
[1747499878873,6.057669,165.08,165.02,9.25869268]
[1747499879255,21.20184152,165.08,165.02,9.25869268]
[1747499880670,20.66,165.07,165.02,9.25869268]
[1747499881064,20.66,165.07,165.02,15.31830781]
[1747499881267,20.66,165.07,165.02,9.25869268]
[1747499881471,20.66,165.07,165.02,15.31850752]
[1747499882172,26.7181646,165.07,165.02,9.25869268]
[1747499883160,26.7181646,165.07,165.02,15.31855787]
[1747499883356,20.66,165.07,165.02,15.31855787]
[1747499884377,26.71807364,165.07,165.02,15.31855622]
[1747499884766,20.66,165.07,165.02,15.31855622]
[1747499885585,20.66,165.07,165.02,96.01855622]
[1747499885782,26.7181037,165.07,165.02,89.95869268]
[1747499886890,41.86319366,165.07,165.02,89.95869268]
[1747499887071,41.86319366,165.07,165.02,9.25869268]
[1747499887879,21.20319366,165.07,165.02,9.25869268]
[1747499888065,41.34,165.06,165.02,9.25869268]
[1747499888592,6.0581037,165.07,165.02,9.25869268]
[1747499888759,20.62,165.06,165.02,9.25869268]
[1747499888961,6.05771359,165.08,165.02,15.3185065]
[1747499889254,20.62,165.08,165.02,15.3185065]
[1747499889570,20.62,165.09,165.02,21.6747065]
[1747499890085,20.72,165.11,165.02,21.6747065]
[1747499890294,20.62,165.1,165.04,1.6247]
[1747499893008,26.67696314,165.1,165.04,7.68364964]
[1747499894011,26.67696314,165.1,165.04,1.6247]
[1747499894397,26.67696314,165.1,165.04,82.3247]
[1747499894913,26.67696314,165.1,165.04,88.38370925]
[1747499895300,21.19605549,165.13,165.04,88.38370925]
[1747499895506,20.56,165.12,165.04,88.38370925]
[1747499895919,20.56,165.12,165.04,80.7]
[1747499896404,1.6247,165.11,165.04,80.7]
[1747499896601,26.0,165.09,165.02,9.25869268]
[1747499897327,26.0,165.1,165.02,9.25869268]
[1747499897503,51.48706764,165.09,165.02,9.25869268]
[1747499897704,26.0,165.06,165.02,9.25869268]
[1747499897918,41.34,165.05,165.02,9.25869268]
[1747499899525,20.7,165.06,165.02,9.25869268]
[1747499899724,20.7,165.06,165.02,15.31847837]
[1747499900027,20.7,165.08,165.02,21.77057837]
[1747499900228,20.7,165.08,165.02,102.47057837]
[1747499901709,26.75774084,165.08,165.02,96.41079268]
[1747499901916,26.75774084,165.08,165.02,9.25869268]
[1747499902110,26.0,165.05,165.02,9.25869268]
[1747499902435,20.72,165.04,165.02,9.25869268]
[1747499903201,20.8,165.07,165.02,9.25869268]
[1747499903416,6.058403,165.06,165.02,9.25869268]
[1747499903721,21.20441051,165.06,165.02,9.25869268]
[1747499907602,26.0,165.05,165.02,9.25869268]
[1747499908220,26.0,165.03,165.02,9.25869268]
[1747499908419,47.16,165.03,165.02,9.25869268]
[1747499908626,48.8261,165.03,165.02,9.25869268]
[1747499909542,54.88560433,165.03,165.02,9.25869268]
[1747499909907,54.88560433,165.03,165.0,2.019148]
[1747499911444,53.21950433,165.03,165.0,2.019148]
[1747499913130,27.21950433,165.03,165.0,2.019148]
[1747499913942,48.31950433,165.03,165.0,2.019148]
[1747499914312,63.46826516,165.03,165.0,2.019148]
[1747499920068,48.31950433,165.03,165.0,2.019148]
[1747499920359,27.21950433,165.03,165.0,2.019148]
[1747499921628,6.05950433,165.03,165.0,2.019148]
[1747499921849,6.05877006,165.05,165.0,2.019148]
[1747499923529,6.058403,165.06,165.0,2.019148]
[1747499923953,21.20441051,165.06,165.0,2.019148]
[1747499925543,51.49642553,165.06,165.0,2.019148]
[1747499927657,21.20441051,165.06,165.0,2.019148]
[1747499929354,51.49642553,165.06,165.0,2.019148]
[1747499930675,77.49642553,165.06,165.0,2.019148]
[1747499930895,26.0,165.03,165.0,2.019148]
[1747499931360,6.06023877,165.01,165.0,2.019148]
[1747499931558,26.92023877,165.01,165.0,2.019148]
[1747499933374,56.92023877,165.01,165.0,2.019148]
[1747499934773,26.92023877,165.01,165.0,2.019148]
[1747499935149,20.86,165.01,165.0,2.019148]
[1747499935345,26.92023877,165.01,165.0,2.019148]
[1747499941186,52.92023877,165.01,165.0,2.019148]
[1747499942162,98.37202956,165.01,164.92,1.5052]
[1747499943164,30.0,164.99,164.92,1.5052]
[1747499943489,21.98,164.98,164.92,1.5052]
[1747499944290,21.98,164.98,164.9,87.2932]
[1747499944777,21.21597865,164.97,164.9,87.2932]
[1747499945382,21.21597865,164.97,164.9,87.2559553]
[1747499947577,22.7,164.96,164.9,87.2559553]
[1747499948558,6.06244316,164.95,164.9,87.2559553]
[1747499951978,21.21855107,164.95,164.9,87.2559553]
[1747499952179,21.21855107,164.95,164.82,80.7]
[1747499952180,21.98,164.94,164.82,80.7]
[1747499952388,21.2211241,164.93,164.79,88.7221]
[1747499952886,21.2211241,164.93,164.8,6.06796116]
[1747499953264,51.53701569,164.93,164.8,18.64964886]
[1747499954186,51.53701569,164.93,164.79,94.79037024]
[1747499954486,26.0,164.9,164.79,8.0221]
[1747499954792,22.58,164.89,164.79,8.0221]
[1747499954974,21.98,164.88,164.79,8.0221]
[1747499955775,28.433,164.88,164.75,8.3164]
[1747499955978,1.5185,164.86,164.75,8.3164]
[1747499956293,1.5185,164.86,164.66,44.52]
[1747499956294,70.54,164.85,164.67,1.6577]
[1747499956487,21.2327105,164.84,164.69,18.64964886]
[1747499956883,21.2327105,164.84,164.68,48.46715897]
[1747499957083,21.2327105,164.84,164.69,18.64964886]
[1747499957394,44.56,164.83,164.7,7.87253432]
[1747499957587,44.56,164.83,164.72,18.64964886]
[1747499957796,22.56,164.82,164.72,18.64964886]
[1747499957979,6.06648871,164.84,164.72,18.64964886]
[1747499958295,26.0,164.8,164.71,1.6577]
[1747499958493,6.06832938,164.79,164.71,7.7289079]
[1747499958693,15.16399561,164.87,164.72,18.64964886]
[1747499958898,44.66,164.85,164.72,18.64964886]
[1747499959694,65.89142249,164.85,164.72,18.64964886]
[1747499960395,65.89142249,164.85,164.71,22.90709987]
[1747499960698,50.72612071,164.85,164.72,18.64964886]
[1747499960886,44.6,164.84,164.72,18.64964886]
[1747499961196,44.6,164.84,164.72,99.34964886]
[1747499961786,6.06612071,164.85,164.73,21.24688884]
[1747499961980,6.06612071,164.85,164.6,30.37558458]
[1747499961981,26.0,164.77,164.6,30.37558458]
[1747499962178,44.62,164.76,164.6,7.28981851]
[1747499963105,6.06980273,164.75,164.62,6.07459603]
[1747499963311,6.06980273,164.75,164.63,18.64964886]
[1747499963484,6.06980273,164.75,164.63,18.14964886]
[1747499963686,6.06980273,164.75,164.62,6.07459603]
[1747499963899,6.06980273,164.75,164.62,22.47558587]
[1747499964099,22.58,164.74,164.64,26.0]
[1747499964328,22.6,164.75,164.66,26.0]
[1747499965105,22.58,164.75,164.67,6.07275156]
[1747499965619,22.58,164.75,164.67,21.25463046]
[1747499965783,227.04,164.8,164.68,25.12964886]
[1747499966110,22.56,164.79,164.68,25.12964886]
[1747499966291,22.56,164.79,164.68,6.48]
[1747499966605,48.56,164.79,164.65,6.07348921]
[1747499966780,48.56,164.79,164.66,18.64964886]
[1747499967275,6.06869765,164.78,164.67,1.21410984]
[1747499967476,22.52,164.77,164.67,81.91410984]
[1747499967695,22.52,164.77,164.68,18.64964886]
[1747499968295,28.06835678,164.79,164.69,26.0]
[1747499968296,22.52,164.76,164.69,26.0]
[1747499968506,22.52,164.76,164.7,6.07164541]
[1747499968694,22.52,164.76,164.71,26.77274886]
[1747499969085,22.52,164.76,164.71,8.1231]
[1747499971121,22.52,164.76,164.71,6.5242]
[1747499971289,22.52,164.76,164.67,42.78027978]
[1747499971290,22.52,164.76,164.68,6.0723828]
[1747499971489,6.06832938,164.79,164.68,21.2533398]
[1747499971827,22.42,164.78,164.68,21.2533398]
[1747499972181,227.04,164.8,164.69,19.86367716]